Cogmind - Beta 15 @@@ ROGUE MODE // 2025.05.17 @ 21:58:57 Player: Figgis Result: Destroyed by XK-XDY(R) with Subdweller Beam Cannon Performance ------------- Evolutions (0) 0 Regions Visited (3) 600 Robots Destroyed (13) 65 Value Destroyed (276) 276 Prototype IDs (0) 0 Alien Tech Used (0) 0 Bonus (35) 35 TOTAL SCORE: 976 Bonus ------- Follower Combat Kills 35 Cogmind --------- Core Integrity 0/250 Matter 291/300 Energy 100/100 System Corruption 0% Temperature Cool (9) Movement Walking (260) Ox2 Location -10/Subcaves Parts ------- > --- POWER (1) -------- (None) > --- PROPULSION (2) --- Aluminum Leg > --- UTILITY (2) ------ Large Storage Unit Targeting Computer > --- WEAPON (2) ------- Light Assault Rifle > --- INVENTORY (15) --- Ion Engine Compact Wheel Improved Heat Sink Medium Storage Unit Experimental Sensor Array Targeting Computer ECM Suite Grenade Launcher Mining Laser Peak State ------------ > --- POWER ------------ Light Ion Engine > --- PROPULSION ------- Aluminum Leg Aluminum Leg > --- UTILITY ---------- Large Storage Unit Targeting Computer > --- WEAPON ----------- Medium Laser Medium Laser > --- INVENTORY -------- Ion Engine Compact Wheel Improved Heat Sink Medium Storage Unit Experimental Sensor Array Targeting Computer ECM Suite Light Assault Rifle Grenade Launcher Mining Laser [Rating: 9] Favorites ----------- Power Light Ion Engine Engine Light Ion Engine Propulsion Aluminum Leg Leg Aluminum Leg Wheel Compact Wheel Utility Targeting Computer Storage Medium Storage Unit Processor Targeting Computer Weapon Assault Rifle Energy Gun Medium Laser Ballistic Gun Assault Rifle Build | -11 -10 -10 -10 ------- Run | Yrd Mat Min Sub Slots Evolved . | . . . . Power . | . . . . Propulsion . | . . . . Utility . | . . . . Weapon . | . . . . Parts Attached 15 | 6 8 . 1 Power 2 | 1 1 . . Engine 2 | 1 1 . . Core . | . . . . Reactor . | . . . . Propulsion 4 | 2 2 . . Treads . | . . . . Leg 2 | . 2 . . Wheel 2 | 2 . . . Hover . | . . . . Flight . | . . . . Utility 4 | 1 3 . . Device . | . . . . Storage 3 | 1 2 . . Processor 1 | . 1 . . Hackware . | . . . . Protection . | . . . . Artifact . | . . . . Weapon 5 | 2 2 . 1 Energy Gun 2 | . 2 . . Energy Cannon . | . . . . Ballistic Gun 3 | 2 . . 1 Ballistic Cannon . | . . . . Launcher . | . . . . Special Weapon . | . . . . Impact Weapon . | . . . . Slashing Weapon . | . . . . Piercing Weapon . | . . . . Special Melee Weapon . | . . . . Unidentified Prototypes . | . . . . Parts Lost 7 | . 3 . 4 Power 2 | . 1 . 1 Propulsion 2 | . 1 . 1 Utility . | . . . . Weapon 3 | . 1 . 2 Highest Loss Streak 4 | . 3 . 4 To Critical Strikes . | . . . . Average Backups 8 | 2 8 9 9 Power 1 | . 1 1 1 Propulsion 1 | 1 1 1 1 Utility 1 | . . 4 5 Weapon 3 | 1 3 3 2 Tool/Special . | . . . . Unused Backups 7 | . . . 7 Power 1 | . . . 1 Propulsion . | . . . . Utility 4 | . . . 4 Weapon 2 | . . . 2 Tool/Special . | . . . . Average Slot Usage (%) 93 | . 92 100 88 Engine 13 | . 13 14 8 Leg 11 | . 7 28 25 Wheel 15 | . 20 . . Storage 14 | . 14 14 14 Processor 9 | . 8 14 14 Energy Gun 11 | . 7 28 19 Ballistic Gun 15 | . 20 . 5 Peak Build Rating 9 | 6 8 9 9 Average Rating 7 | 3 6 8 7 On Entrance 5 | . 6 8 9 Naked Turns . | . . . . Heaviest Build 27 | 12 27 27 27 Greatest Support 26 | 26 26 20 20 Greatest Overweight (x) 1 | . 1 1 1 Average Overweight (x) . | . . 1 1 Largest Inventory Capacity 15 | 8 15 15 15 Average Capacity 11 | 7 10 15 15 Most Carried 10 | 7 10 10 10 Average Carried 8 | 3 8 9 9 Final Capacity 15 | 8 15 15 15 Final Carried 10 | 4 9 10 9 Class Distribution -------------------- 100% | Mutant Dominant Class ---------------- Mutant | -10/Materials Mutant | -10/Mines Mutant | -10/Subcaves Resources | -11 -10 -10 -10 ----------- Run | Yrd Mat Min Sub Matter Collected 481 | 194 287 . . Remotely . | . . . . Salvage Created 333 | . 308 25 . Parts 26 | . 26 . . Haulers Intercepted . | . . . . Recyclers Shooed . | . . . . Parts Field Recycled . | . . . . Retrieved Matter . | . . . . Parts Self-Destructed . | . . . . Prevented . | . . . . Kills | -11 -10 -10 -10 ------- Run | Yrd Mat Min Sub Combat Hostiles Destroyed 10 | . 9 1 . Guns 10 | . 9 1 . Classes Destroyed 4 | . 4 . . Worker 1 | . 1 . . Watcher 2 | . 2 . . Swarmer 5 | . 5 . . Grunt 5 | . 4 1 . Best Kill Streak 5 | . 5 1 . Combat Bots Only 3 | . 3 1 . Max Kills in Single Turn 2 | . 2 1 . Gunslinging 1 | . 1 . . Exploded . | . . . . Melee . | . . . . Uniques/NPCs Destroyed . | . . . . Combat | -11 -10 -10 -10 -------- Run | Yrd Mat Min Sub Hostile Shots Fired 74 | . 41 5 28 Missed 22 | . 12 . 10 Hits 52 | . 29 5 18 Projectile 52 | . 29 5 18 Critical Strikes 1 | . . . 1 Damage Taken 964 | . 399 103 462 Core 261 | . 78 20 163 Absorbed by Shields . | . . . . Core Remaining (%) 100 | 100 . . . Volleys Fired 54 | . 36 5 13 Largest 2 | . 2 2 2 Hottest 100 | . 100 100 100 Shots Fired 85 | . 58 10 17 Gun 85 | . 58 10 17 Cannon . | . . . . Launcher . | . . . . Special . | . . . . Kinetic 61 | . 52 . 9 Thermal 24 | . 6 10 8 Explosive . | . . . . Electromagnetic . | . . . . Robot Hit Streak 14 | . 7 6 14 Robot Miss Streak 3 | . 3 2 1 Penetration Max . | . . . . Secondary Targets 1 | . 1 . . Max Gunslinging Chain 1 | . 1 . . Shots Hit Robots 60 | . 37 7 16 Core Hits 19 | . 16 2 1 Critical Kills . | . . . . Critical Parts Destroyed . | . . . . Critical Strikes 1 | . . . 1 Burn 1 | . . . 1 Melee Attacks . | . . . . Impact . | . . . . Slashing . | . . . . Piercing . | . . . . Sneak Attacks . | . . . . Combat Hostiles . | . . . . Follow-up Attacks . | . . . . Damage Inflicted 732 | . 476 89 167 Guns 732 | . 476 89 167 Cannons . | . . . . Explosions . | . . . . Melee . | . . . . Ramming . | . . . . Kinetic 530 | . 451 . 79 Thermal 202 | . 25 89 88 Explosive . | . . . . Electromagnetic . | . . . . Impact . | . . . . Slashing . | . . . . Piercing . | . . . . Highest Corruption . | . . . . Average Corruption . | . . . . Corruption Purged . | . . . . Corruption Blocked . | . . . . Overload Shots . | . . . . Overflow Damage . | . . . . Projectiles . | . . . . Explosions . | . . . . Melee . | . . . . Knockbacks . | . . . . Impact . | . . . . Kinetic . | . . . . Secondary . | . . . . Self-Inflicted Damage . | . . . . Shots . | . . . . Rammed . | . . . . Targets Rammed . | . . . . Kicked . | . . . . Crushed . | . . . . Highest Temperature 231 | . 39 231 2 Average Temperature 73 | . 16 119 2 Received Heat Transfer 339 | . 165 33 141 Siege Activations . | . . . . Martial Activations . | . . . . Shielding Activations . | . . . . Robots Disrupted . | . . . . Combat Hostiles . | . . . . Robots Corrupted . | . . . . Combat Hostiles . | . . . . Parts Fried . | . . . . Impact Corruptions . | . . . . Robots Melted . | . . . . Combat Hostiles . | . . . . Parts Melted 1 | . . 1 . Heat Transferred 666 | . 74 259 333 Parts Sabotaged . | . . . . Parts Stolen . | . . . . Parts Stripped . | . . . . Power Chain Reactions . | . . . . Alert | -11 -10 -10 -10 ------- Run | Yrd Mat Min Sub Maximum Alert Level . | . . . . Low Security (%) 100 | 100 100 100 . Level 1 . | . . . . Level 2 . | . . . . Level 3 . | . . . . Level 4 . | . . . . Level 5 . | . . . . High Security . | . . . . Max Security . | . . . . Peak Influence 80 | . 80 60 . Initial . | . . . . Average 18 | . 20 13 . Influence Increases 318 | . 248 70 . Destroy 0b10 Robot/C 220 | . 180 40 . Destroy 0b10 Robot/NC 15 | . 15 . . Destroy Leader 54 | . 44 10 . Allied During Kill 5 | . . 5 . Successful Hack 9 | . 9 . . Disable Machine 15 | . . 15 . Influence Decreases 318 | . 248 20 50 Entered New Map 26 | . . . 26 Time Decay 248 | . 218 20 10 Lost Part 44 | . 30 . 14 Squads Dispatched 2 | . 2 . . Investigation . | . . . . Extermination . | . . . . Reinforcement 2 | . 2 . . Assault . | . . . . Garrison . | . . . . Intercept . | . . . . Searches Triggered . | . . . . Construction Impeded . | . . . . Haulers Reinforced . | . . . . Active Scanning Responses . | . . . . Cargo Convoy Interrupts . | . . . . Stealth | -11 -10 -10 -10 --------- Run | Yrd Mat Min Sub Distress Signals 1 | . 1 . . Communications Jammed . | . . . . Distress Signals . | . . . . Times Spotted 22 | . 18 2 2 Peak Tracking Total 4 | . 4 2 2 Tactical Retreats . | . . . . Traps | -11 -10 -10 -10 ------- Run | Yrd Mat Min Sub Traps Triggered 1 | . 1 . . Indirectly . | . . . . Trap Hack Attempts . | . . . . Triggered . | . . . . Disarmed . | . . . . Reprogrammed . | . . . . Reused . | . . . . Traps Extracted . | . . . . Installed . | . . . . Triggered . | . . . . Machines | -11 -10 -10 -10 ---------- Run | Yrd Mat Min Sub Machines Disabled 1 | . . 1 . Max in Single Turn . | . . . . Machines Repaired . | . . . . Machines Dismantled . | . . . . Machines Sabotaged . | . . . . Overloaded Fab Kills . | . . . . Hacking | -11 -10 -10 -10 --------- Run | Yrd Mat Min Sub Machines Accessed 8 | . 8 . . Terminals 6 | . 6 . . Fabricators . | . . . . Repair Stations . | . . . . Recycling Units 2 | . 2 . . Scanalyzers . | . . . . Garrison Access . | . . . . Total Hacks 10 | . 10 . . Successful 3 | . 3 . . Failed 7 | . 7 . . Catastrophic 4 | . 4 . . Database Lockouts . | . . . . Manual 6 | . 6 . . Terminals 8 | . 8 . . Fabricators . | . . . . Repair Stations . | . . . . Recycling Units 2 | . 2 . . Scanalyzers . | . . . . Garrison Access . | . . . . Terminal Hacks 1 | . 1 . . Registered Prototypes 1 | . 1 . . Fabricator Hacks . | . . . . Repair Station Hacks . | . . . . Recycling Unit Hacks 2 | . 2 . . Report Inventory 2 | . 2 . . Scanalyzer . | . . . . Garrison Access Hacks . | . . . . Unauthorized Hacks . | . . . . Terminals . | . . . . Fabricators . | . . . . Repair Stations . | . . . . Recycling Units . | . . . . Scanalyzers . | . . . . Garrison Access . | . . . . Data Cores Recovered . | . . . . Used . | . . . . Hacking Detections 6 | . 6 . . Full Trace Events . | . . . . Feedback Events . | . . . . Feedback Blocked . | . . . . Robot Schematics Acquired . | . . . . Robots Built . | . . . . Authchips . | . . . . Time . | . . . . Total Robot Build Rating . | . . . . Part Schematics Acquired . | . . . . Parts Built . | . . . . Authchips . | . . . . Time . | . . . . Total Part Build Rating . | . . . . Parts Repaired . | . . . . Time . | . . . . Parts Recycled . | . . . . Recycled Matter . | . . . . Retrieved Matter . | . . . . Retrieved Components . | . . . . Parts Scanalyzed . | . . . . Part Schematics Acquired . | . . . . Parts Damaged . | . . . . Bothacking | -11 -10 -10 -10 ------------ Run | Yrd Mat Min Sub Used RIF Installer . | . . . . Robots Hacked . | . . . . Non-combat . | . . . . Combat . | . . . . Robot Hacks Applied . | . . . . Relay Couplers Released . | . . . . Fabnet Peak Effective % . | . . . . Robots Rewired . | . . . . Allies Hacked . | . . . . Hacks Repelled . | . . . . Allies | -11 -10 -10 -10 -------- Run | Yrd Mat Min Sub Total Allies 2 | . . 2 . Largest Group 2 | . . 2 1 Highest-Rated Group 42 | . . 42 15 Highest-Rated Ally 31 | . . 31 15 Total Orders . | . . . . Ally Attacks 7 | . . 7 . Total Damage 195 | . . 195 . Kills 2 | . . 2 . Allies Corrupted . | . . . . Allies Melted . | . . . . Intel | -11 -10 -10 -10 ------- Run | Yrd Mat Min Sub Active Infowar (turns) . | . . . . Robot Analysis Total . | . . . . Derelict Logs Recovered . | . . . . Drone Launches . | . . . . Drone Recoveries . | . . . . Exploration | -11 -10 -10 -10 ------------- Run | Yrd Mat Min Sub Turns Passed 1015 | 51 759 159 46 Spaces Moved 771 | 41 645 76 9 Core 6 | 6 . . . Treads . | . . . . Legs 217 | . 132 76 9 Wheels 548 | 35 513 . . Hover . | . . . . Flight . | . . . . Fastest Speed 50 | 50 90 190 190 Average Speed 108 | 83 99 190 190 Slowest Speed 190 | 90 190 190 190 Overloaded Moves . | . . . . Propulsion Burnouts . | . . . . Robots Hopped . | . . . . Potential Cave-ins . | . . . . Cave-ins Triggered . | . . . . Exploration Rate (%) 30 | 4 96 18 2 Regions Visited 3 Branch Regions 2 Pre-discovered Areas . | . . . . Known Exits Taken . | . . . . Unknown Exits Taken 3 | 1 1 1 . Scrap Searched . | . . . . Spaces Dug . | . . . . Terrain Destroyed . | . . . . Melee . | . . . . Projectile . | . . . . AOE . | . . . . Terrain Rammed . | . . . . Walls Destroyed . | . . . . Machines Disabled . | . . . . Actions | -11 -10 -10 -10 --------- Run | Yrd Mat Min Sub Total 864 | 57 703 81 23 Wait 3 | 1 2 . . Move 768 | 40 644 75 9 Hop . | . . . . Pick Up 22 | 10 11 1 . Fast Attach . | . . . . Attach 13 | 6 6 . 1 Detach . | . . . . Swap 2 | . 2 . . Drop 2 | . 2 . . Fire 54 | . 36 5 13 Melee . | . . . . Ram . | . . . . Kick . | . . . . Crush . | . . . . Escape Stasis . | . . . . Rewire . | . . . . Trap . | . . . . Miscellaneous . | . . . . Route ------- -11/Scrapyard -10/Materials (discovered 4 exits: [*Mat x3] / [*Min]) -10/Mines -10/Subcaves History --------- Turn | Location | Event 32 | -11/Scrapyard | Discovered new exit (range 15) 52 | -11/Scrapyard | Entered Materials 147 | -10/Materials | Discovered new exit (range 12) 314 | -10/Materials | Build established: Mutant 489 | -10/Materials | Discovered new exit (range 16) 571 | -10/Materials | Discovered new exit (range 12) 637 | -10/Materials | Lost 3 parts (1p1n1w) 781 | -10/Materials | Discovered new exit (range 16) 811 | -10/Materials | Entered Mines 813 | -10/Mines | Met a Derelict bent on vengeance 857 | -10/Mines | Found a damaged Exp. Sensor Array with a note attached 861 | -10/Mines | Found Prototype Device 950 | -10/Mines | Assembled infested the area 953 | -10/Mines | Discovered new exit (range 10) 970 | -10/Mines | Entered Subcaves 970 | -10/Subcaves | Accompanied by 1 ally 971 | -10/Subcaves | Approached by a straggling Scientist 995 | -10/Subcaves | Core integrity fell below 50% 1005 | -10/Subcaves | Core integrity fell below 20% 1016 | -10/Subcaves | Destroyed by XK-XDY(R) with Subdweller Beam Cannon Last Messages --------------- 00953_ EXIT=FOUND 00955_ R-06 Scavenger collects Imp. Heat Sink. 00957_ T-07 Excavator is excavating. 00960_ R-06 Scavenger collects Lgt. Nuclear Core. LOCATION=UNKNOWN AMBIENT_HEAT=-10 GOAL=ESCAPE 00971_ IB-Y4N(c): "Thank the algorithms! I was beginning to lose hope I'd never make it past all the Subs lurking out here." 00975_ IB-Y4N(c): "Hey, let me tag along and I can get us both out of this nasty situation. At least I think I can... The group I got separated from was talking about a shortcut back to the UFD." 00991_ XK-XDY(R) suffers critical hit (Burn). 00992_ Med. Laser destroyed. 00996_ Lgt. Ion Engine destroyed. 00998_ KH-LSN(z) pulls a Mak. Axe out of the Twisted Machinery. 01000_ Aluminum Leg destroyed. 01002_ Med. Laser destroyed. 01003_ KH-LSN(z) destroyed. 01009_ Subatomizers dissect the Lgt. Ion Engine. Map ----- +----------------------------------------------------+ | ?????????????????????????????????????????????????? | | ?????????????????????????????????????????????????? | | ?????????????????????????????????????????????????? | | ?????????????????????????????????????????????????? | | ?????????????????????????????????????????????????? | | ?????????????????????????????????????????????????? | | ?????????????????????????????????????????????????? | | ?????????????????????????????????????????????????? | | ?????????????????????????????????????????????????? | | ??????????????????????????? ?????????????????????? | | ??????????????????????????? ?????????????????????? | | ??????????????????????????? ?????????????????????? | | ??????????????????????????? ????????????????????? | | ??????????????????????????? ?? ?????????????????? | | ?????????????????????????## #? "????????????????? | | ?????????????????????????? " #""????????????????? | | ?????????????????????????? " ""?????????????????? | | ??????????????????#####??# "" ?????????????????? | | ??????????????????? """## " ?????????????????? | | ???????????????????#" "" ?? ##????????????????? | | ???????????????????# ?? " #????????????????? | | ???????????????????# "??## ##???????????????? | | ???????????????????# "??# # ##??????????????? | | ??????????????????## "##### ##?????????????? | | ??????????????????# # ## c #?????????????? | | ??????????????????# """"R@/ " " #?????????????? | | ??????????????? """"R%= " ##?????????????? | | ????????????? """ " # ##"" ###??????????????? | | ?????????????? ## " ####"" #????????????????? | | ??????????????????## #??# ##????????????????? | | ???????????????????# ??####?????????????????? | | ???????????????????## ???????????????????????? | | ????????????????????## ???????????????????????? | | ?????????????????????#### #??????????????????????? | | ?????????????????????????##??????????????????????? | | ?????????????????????????????????????????????????? | | ?????????????????????????????????????????????????? | | ?????????????????????????????????????????????????? | | ?????????????????????????????????????????????????? | | ?????????????????????????????????????????????????? | | ?????????????????????????????????????????????????? | | ?????????????????????????????????????????????????? | | ?????????????????????????????????????????????????? | | ?????????????????????????????????????????????????? | | ?????????????????????????????????????????????????? | | ?????????????????????????????????????????????????? | | ?????????????????????????????????????????????????? | | ?????????????????????????????????????????????????? | | ?????????????????????????????????????????????????? | | ?????????????????????????????????????????????????? | +----------------------------------------------------+ Best States ------------- Heat Dissipation 25 Energy Generation 10 Energy Capacity 125 Matter Stores 300 Matter Capacity 300 Sight Range 16 Terrain Scan Density 10 Evasion (%) 55 Targeting Accuracy 5 Item Schematics ----------------- None Robot Schematics ------------------ None Fabricated ------------ Nothing Repaired ---------- Nothing Alien Tech Used ----------------- None Achievements -------------- None Challenges ------------ None Game ------ Seed MeleeGreatSource Manual? 0 Play Time 00:08:14 Cumulative 122.0 hours Start 2025.05.17 @ 21:51:03 End 2025.05.17 @ 21:58:57 Sessions 1 Manual Loads 0 Difficulty Rogue Special Mode None Game No. 190 Rogue 187 Adventurer 3 Explorer 0 Win Type - Total 0 Types 0/0/0/0/0/0/0/0/0/0 Lore% 28 Gallery% 50 Achievement% 42 Wizard Run 0 Options --------- Layout 0 ASCII 0 Keyboard 0 Movement Mouse Keybinds 0 Fullscreen 2 Font 18/SmallcapsGlow Map View 76x50 Zoom Use 0% Tactical HUD 1 Map Filters NONE Filters NONE Steam 1 RUN: de9379dc-6ef3-40df-bffd-5229bac679de